fUSD/lending_fUSD_20250911
["ID","MTS","AMOUNT","RATE_DAILY","PERIOD"]
[384865772,1757599851845,-500.0,0.00027397,7]
[384865774,1757599851854,-404.26096147,0.00027397,7]
[384865776,1757599851864,-400.0,0.00027397,7]
[384865778,1757599851873,-200.0,0.00027397,7]
[384865780,1757599851883,-1515.47,0.00027397,7]
[384865782,1757599851893,-400.0,0.00027397,7]
[384865784,1757599851903,-688.69,0.00027397,7]
[384865786,1757599851914,-400.0,0.00027397,7]
[384865788,1757599851923,-400.0,0.00027397,7]
[384865790,1757599851932,-400.0,0.00027397,7]
[384865792,1757599851941,-400.0,0.00027397,7]
[384865794,1757599851950,-400.0,0.00027397,7]
[384865796,1757599851959,-400.0,0.00027397,7]
[384865798,1757599851968,-400.0,0.00027397,7]
[384865800,1757599851977,-3191.15,0.00027397,7]
[384865802,1757599851987,-400.0,0.00027397,7]
[384865804,1757599851995,-400.0,0.00027397,7]
[384865806,1757599852005,-400.0,0.00027397,7]
[384865808,1757599852014,-400.0,0.00027397,7]
[384865810,1757599852024,-400.0,0.00027397,7]
[384865812,1757599852033,-500.0,0.00027397,7]
[384865814,1757599852042,-500.0,0.00027397,7]
[384865816,1757599852051,-302.73197493,0.00027397,7]
[384865818,1757599852060,-400.0,0.00027397,7]
[384865820,1757599852070,-400.0,0.00027397,7]
[384865822,1757599852081,-400.0,0.00027397,7]
[384865824,1757599852090,-400.0,0.00027397,7]
[384865826,1757599852099,-1822.26,0.00027397,7]
[384865828,1757599852108,-400.0,0.00027397,7]
[384865830,1757599852117,-682.66,0.00027397,7]
[384865832,1757599852127,-400.0,0.00027397,7]
[384865834,1757599852137,-400.0,0.00027397,7]
[384865836,1757599852147,-918.66,0.00027397,7]
[384865838,1757599852156,-404.58198989,0.00027397,7]
[384865840,1757599852165,-400.0,0.00027397,7]
[384865842,1757599852174,-2197.97,0.00027397,7]
[384865844,1757599852184,-400.0,0.00027397,7]
[384865846,1757599852193,-400.0,0.00027397,7]
[384865848,1757599852202,-734.66,0.00027397,7]
[384865850,1757599852211,-1111.13,0.00027397,7]
[384865852,1757599852220,-630.07,0.00027397,7]
[384865854,1757599852230,-400.0,0.00027397,7]
[384865856,1757599852239,-400.0,0.00027397,7]
[384865858,1757599852248,-401.32811871,0.00027397,7]
[384865860,1757599852257,-400.0,0.00027397,7]
[384865862,1757599852267,-521.71442667,0.00027397,7]
[384865864,1757599852276,-400.0,0.00027397,7]
[384865866,1757599852286,-400.0,0.00027397,7]
[384865868,1757599852295,-777.08,0.00027397,7]
[384865870,1757599852304,-587.32,0.00027397,7]
[384865872,1757599852314,-400.0,0.00027397,7]
[384865874,1757599852323,-400.0,0.00027397,7]
[384865876,1757599852334,-654.35,0.00027397,7]
[384865878,1757599852343,-2396.62,0.00027397,7]
[384865880,1757599852352,-2237.08,0.00027397,7]
[384865882,1757599852361,-884.37,0.00027397,7]
[384865884,1757599852371,-3228.52,0.00027397,7]
[384865887,1757599852384,-400.0,0.00027397,7]
[384865889,1757599852393,-400.0,0.00027397,7]
[384865891,1757599852403,-3113.97,0.00027397,7]
[384865893,1757599852412,-400.0,0.00027397,7]
[384865895,1757599852422,-400.0,0.00027397,7]
[384865897,1757599852431,-2283.34,0.00027397,7]
[384865899,1757599852441,-400.0,0.00027397,7]
[384865901,1757599852450,-400.0,0.00027397,7]
[384865903,1757599852460,-400.0,0.00027397,7]
[384865905,1757599852469,-407.16422055,0.00027397,7]
[384865907,1757599852479,-1877.64,0.00027397,7]
[384865909,1757599852488,-400.0,0.00027397,7]
[384865911,1757599852498,-670.5,0.00027397,7]
[384865913,1757599852507,-400.0,0.00027397,7]
[384865915,1757599852517,-1668.99,0.00027397,7]
[384865917,1757599852526,-545.55,0.00027397,7]
[384865919,1757599852536,-400.0,0.00027397,7]
[384865921,1757599852545,-400.0,0.00027397,7]
[384865923,1757599852555,-400.0,0.00027397,7]
[384865925,1757599852564,-1058.91,0.00027397,7]
[384865927,1757599852574,-551.37,0.00027397,7]
[384865928,1757599852586,-1701.77,0.00027397,7]
[384865929,1757599852595,-400.0,0.00027397,7]
[384865930,1757599852604,-400.0,0.00027397,7]
[384865931,1757599852613,-400.0,0.00027397,7]
[384865932,1757599852622,-400.0,0.00027397,7]
[384865933,1757599852632,-400.0,0.00027397,7]
[384865934,1757599852641,-400.0,0.00027397,7]
[384865936,1757599852650,-725.32,0.00027397,7]
[384865938,1757599852659,-402.70584974,0.00027397,7]
[384865940,1757599852668,-400.0,0.00027397,7]
[384865942,1757599852678,-400.0,0.00027397,7]
[384865944,1757599852687,-400.0,0.00027397,7]
[384865946,1757599852696,-400.0,0.00027397,7]
[384865948,1757599852705,-1675.99,0.00027397,7]
[384865950,1757599852715,-400.0,0.00027397,7]
[384865952,1757599852724,-2422.95,0.00027397,7]
[384865954,1757599852733,-2849.3,0.00027397,7]
[384865956,1757599852742,-400.0,0.00027397,7]
[384865958,1757599852752,-400.0,0.00027397,7]
[384865960,1757599852762,-500.0,0.00027397,7]
[384865962,1757599852774,-1733.76,0.00027397,7]
[384865964,1757599852784,-500.0,0.00027397,7]
[384865966,1757599852793,-500.0,0.00027397,7]
[384865968,1757599852803,-400.0,0.00027397,7]
[384865970,1757599852813,-400.0,0.00027397,7]
[384865972,1757599852822,-508.83259931,0.00027397,7]
[384865974,1757599852833,-400.0,0.00027397,7]
[384865976,1757599852842,-400.0,0.00027397,7]
[384865978,1757599852852,-400.0,0.00027397,7]
[384865980,1757599852862,-400.0,0.00027397,7]
[384865982,1757599852871,-402.9318166,0.00027397,7]
[384865984,1757599852880,-400.0,0.00027397,7]
[384865986,1757599852890,-400.0,0.00027397,7]
[384865988,1757599852899,-400.0,0.00027397,7]
[384865990,1757599852909,-400.0,0.00027397,7]
[384865992,1757599852917,-400.0,0.00027397,7]
[384865994,1757599852926,-500.0,0.00027397,7]
[384865996,1757599852936,-499.92868321,0.00027397,7]
[384865998,1757599852946,-250.82731459,0.00027397,7]
[384866011,1757599853058,-660.12869999,0.00027397,7]
[384866592,1757599862219,2500.0,0.0003003,120]
[384866593,1757599862329,2500.0,0.00027349,120]
[384866594,1757599862494,2500.0,0.00027378,120]
[384866595,1757599862576,2500.0,0.00027378,120]
[384866596,1757599862689,2500.0241674,0.00027378,120]
[384866995,1757600608837,168.52,0.00025805,120]
[384867003,1757600708438,19844.4,0.0002,2]
[384867004,1757600708488,91570.64086864,0.0002,2]
[384867006,1757600732399,-373.5177189,0.00021,2]
[384867009,1757600735477,-391.78922396,0.00021,2]
[384867010,1757600739442,-250.0,0.00021,2]
[384867011,1757600740964,155.6,0.00016438,2]
[384867013,1757600741677,-195.0,0.00021,2]
[384867038,1757600983266,172.0,0.0001943,2]
[384867046,1757601031902,-1200.0,0.00020999,2]
[384867047,1757601031912,-250.0,0.00020999,2]
[384867048,1757601031922,-74187.49127855,0.00021,2]
[384867049,1757601032113,-3639.22672103,0.00021,2]
[384867050,1757601032125,-9328.46404465,0.00021,2]
[384867051,1757601032136,-396.2426149,0.00021,2]
[384867052,1757601032148,-1566.72775762,0.00021,2]
[384867053,1757601032159,-832.81020728,0.00021,2]
[384867054,1757601032186,-10431.78400891,0.00021,2]
[384867055,1757601032196,-3053.83457187,0.00021,2]
[384867056,1757601032207,-425.70145106,0.00021,2]
[384867057,1757601032249,-17641.08135723,0.00021,2]
[384867058,1757601032258,-160.0,0.00021,7]
[384867059,1757601032268,-1680.0,0.00022951,2]
[384867060,1757601032278,-250.0,0.00023099,2]
[384867061,1757601032291,-195.0,0.000231,2]
[384867062,1757601032300,-150.0,0.000231,2]
[384867063,1757601032309,-300.0,0.000231,2]
[384867064,1757601032319,-165.42197378,0.0002415,7]
[384867065,1757601032328,-165.42197378,0.0002415,7]
[384867066,1757601032338,-160.6,0.000246,5]
[384867067,1757601032348,-150.0,0.00024633,2]
[384867068,1757601032360,-162.96,0.00024658,2]
[384867069,1757601032370,-4357.46564612,0.000249,2]
[384867070,1757601032380,-168.0,0.00024917,2]
[384867071,1757601032389,-2351.0,0.00025084,2]
[384867072,1757601032399,-168.0,0.00025254,2]
[384867073,1757601032408,-322.6107,0.00025422,2]
[384867074,1757601032418,-151.7508912,0.00025422,2]
[384867075,1757601032428,-1000.0,0.00025422,2]
[384867076,1757601032437,-1058.70373802,0.00025422,2]
[384867077,1757601032447,-257.91778498,0.00025422,2]
[384867078,1757601032456,-500.0,0.00025422,2]
[384867079,1757601032466,-160.0,0.00025422,2]
[384867080,1757601032475,-500.0,0.00025422,2]
[384867081,1757601032484,-384.28007285,0.00025422,2]
[384867082,1757601032495,-250.0,0.00025422,2]
[384867083,1757601032504,-250.0,0.00025422,2]
[384867084,1757601032513,-500.0,0.00025422,2]
[384867086,1757601032522,-238.21497886,0.00025422,2]
[384867088,1757601032532,-250.0,0.00025422,2]
[384867090,1757601032543,-1000.0,0.00025422,2]
[384867092,1757601032552,-1000.0,0.00025422,2]
[384867094,1757601032561,-316.34900863,0.00025422,2]
[384867096,1757601032570,-1000.0,0.00025422,2]
[384867098,1757601032579,-1000.0,0.00025422,2]
[384867100,1757601032588,-531.00996454,0.00025422,2]
[384867102,1757601032598,-150.0,0.00025457,2]
[384867104,1757601032607,-396.01,0.00025572,2]
[384867106,1757601032617,-216.81202705,0.00025573,2]
[384867108,1757601032626,-254.28571074,0.00025689,2]
[384867110,1757601032635,-1633.0,0.000257,5]
[384867112,1757601032645,-291.75939443,0.00025805,2]
[384867114,1757601032653,-200.0,0.00025823,2]
[384867116,1757601032663,-712.76,0.00025828,2]
[384867118,1757601032674,-329.23307812,0.00025921,2]
[384867121,1757601032684,-168.0,0.00026028,2]
[384867123,1757601032694,-366.70676181,0.00026037,2]
[384867124,1757601032703,-168.0,0.00026099,2]
[384867125,1757601032712,-404.1804455,0.00026153,2]
[384867127,1757601032721,-168.0,0.00026177,2]
[384867128,1757601032731,-441.65412918,0.00026269,2]
[384867129,1757601032741,-479.12781287,0.00026385,2]
[384867130,1757601032750,-1091.68,0.00026438,7]
[384867131,1757601032759,-516.60149656,0.00026501,2]
[384867132,1757601032769,-168.0,0.00026572,7]
[384867133,1757601032778,-779.7646242,0.00026575,2]
[384867134,1757601032787,-168.0,0.00026582,2]
[384867135,1757601032799,-351.0,0.000266,2]
[384867137,1757601032808,-300.0,0.000266,9]
[384867138,1757601032818,-554.07518025,0.00026617,2]
[384867140,1757601032827,-1091.68,0.0002663,7]
[384867142,1757601032837,-168.0,0.0002664,2]
[384867144,1757601032847,-168.0,0.00026695,7]
[384867146,1757601032856,-600.0,0.000267,9]
[384867148,1757601032866,-591.54886394,0.00026733,2]
[384867150,1757601032876,-319.08739173,0.00026791,2]
[384867152,1757601032885,-267.46074303,0.00026791,2]
[384867154,1757601032894,-160.0,0.00026791,2]
[384867156,1757601032905,-1000.0,0.000268,9]
[384867158,1757601032915,-846.24016119,0.00026803,2]
[384867160,1757601032924,-168.0,0.00026804,2]
[384867162,1757601032934,-846.24016119,0.00026808,2]
[384867164,1757601032945,-1091.68,0.00026821,7]
[384867166,1757601032956,-846.24016119,0.00026833,2]
[384867168,1757601032965,-629.02254763,0.00026849,2]
[384867170,1757601032975,-396.01,0.00026851,2]
[384867172,1757601032985,-1300.0,0.000269,9]
[384867174,1757601032994,-846.24016119,0.00026905,2]
[384867176,1757601033004,-846.24016119,0.00026915,2]
[384867178,1757601033015,-846.24016119,0.00026939,2]
[384867180,1757601033024,-666.49623131,0.00026965,2]
[384867182,1757601033034,-846.24016119,0.00026998,2]
[384867184,1757601033045,-1265.94444277,0.00027,15]
[384867187,1757601033055,-1091.68,0.00027013,7]
[384867189,1757601033065,-160.0,0.00027071,2]
[384867191,1757601033075,-515.37529716,0.00027071,2]
[384867192,1757601033085,-212.89373682,0.00027071,2]
[384867194,1757601033095,-168.0,0.00027073,2]
[384867196,1757601033106,-703.969915,0.00027081,2]
[384867199,1757601033117,-168.0,0.00027092,2]
[384867201,1757601033128,-192.52,0.00027097,2]
[384867203,1757601033139,-1219.0,0.000271,2]
[384867205,1757601033149,-1000.0,0.000271,2]
[384867207,1757601033159,-741.44359869,0.00027197,2]
[384867209,1757601033169,-1091.68,0.00027205,7]
[384867211,1757601033179,-2912.0554,0.00027213,2]
[384867213,1757601033190,-3057.0,0.00027262,2]
[384867215,1757601033199,-458.9211,0.00027287,2]
[384867217,1757601033209,-190.5,0.00027287,2]
[384867219,1757601033219,-7778.5963,0.00027297,2]
[384867221,1757601033228,-2967.6468,0.00027297,2]
[384867223,1757601033238,-20286.43619778,0.00027297,2]
[384867225,1757601033251,-5633.99998,0.00027297,2]
[384867233,1757601033319,-7289.12402222,0.00027297,2]
[384867235,1757601033330,-4054.0052,0.00027297,2]
[384867237,1757601033340,-1000.0,0.00027297,2]
[384867239,1757601033349,-425.37677906,0.00027297,2]
[384867241,1757601033359,-159.63200456,0.00027297,2]
[384867243,1757601033370,-502.60438444,0.00027297,2]
[384867245,1757601033380,-160.6,0.000273,21]
[384867247,1757601033390,-161.4,0.000273,14]
[384867249,1757601033401,-1000.0,0.000273,2]
[384867251,1757601033411,-236.09233612,0.00027313,2]
[384867253,1757601033423,-542.82494626,0.00027313,2]
[384867255,1757601033433,-65.51555008,0.00027349,2]
[384867263,1757601033500,-7922.78890242,0.00027349,2]
[384867265,1757601033510,-1276.65,0.00027367,2]
[384867267,1757601033520,-500.0,0.00027373,2]
[384867269,1757601033530,-500.0,0.00027373,2]
[384867271,1757601033540,-33767.56731877,0.00027377,2]
[384867276,1757601033577,-968.34952745,0.00027377,2]
[384867447,1757601038066,-400.0,0.00027377,2]
[384867448,1757601038118,-957.22713934,0.00027377,2]
[384867449,1757601038130,-727.46326589,0.00027377,2]
[384867497,1757601039904,-2202.94999999,0.00027377,2]
[384867498,1757601040172,-8877.60829613,0.00027377,2]
[384867499,1757601040186,-435.22115147,0.00027377,2]
[384867533,1757601042965,-9747.57524725,0.00027377,2]
[384867536,1757601042983,-300.0,0.00027377,2]
[384867539,1757601043015,-435.73,0.00027377,2]
[384867540,1757601043380,-6912.70309239,0.00027377,2]
[384867609,1757601046050,-1922.71498704,0.00027377,2]
[384867610,1757601046065,-594.97342954,0.00027377,2]
[384867611,1757601046076,-1140.73314806,0.00027377,2]
[384867612,1757601046088,-80318.02467257,0.00027377,2]
[384867613,1757601046099,-1214.44684669,0.00027377,2]
[384867614,1757601046125,-1018.72594151,0.00027377,2]
[384867615,1757601046208,-2416.78639999,0.00027377,2]
[384867616,1757601046235,-379.59051729,0.00027377,2]
[384867617,1757601046246,-3457.79437244,0.00027377,2]
[384867618,1757601046264,-2508.71315223,0.00027377,2]
[384867619,1757601046307,-350.03420307,0.00027377,2]
[384867650,1757601063286,2500.0,0.00029851,120]
[384867651,1757601063399,778.17818902,0.00027205,120]
[384867652,1757601063918,300.0,0.00029851,120]
[384867683,1757601479523,-1180.35432885,0.00024657,2]
[384867684,1757601479547,-1180.35432885,0.000249,2]
[384867685,1757601479562,-238.7432442,0.000249,2]
[384867686,1757601483298,278.0,0.00030137,120]
[384867687,1757601492113,-500.0,0.000249,2]
[384867688,1757601505002,-627.96,0.000249,2]
[384867691,1757601521611,-500.0,0.000249,2]
[384867693,1757601552741,-163.936103,0.000249,2]
[384867695,1757601569715,-151.0,0.000251,7]
[384867696,1757601584099,-163.936103,0.000249,2]
[384867697,1757601591361,-170.38566447,0.00020193,2]
[384867699,1757601594092,-225.23799484,0.00020193,2]
[384867700,1757601597741,-14.37634069,0.00020193,2]
[384867701,1757601680815,-3578.09186915,0.000249,2]
[384867703,1757601696646,-1222.19358976,0.000249,2]
[384867704,1757601696674,-49.0,0.000251,7]
[384867705,1757601696702,-200.0,0.0002551,7]
[384867706,1757601696732,-168.0,0.00025894,2]
[384867707,1757601696760,-150.0,0.00026003,2]
[384867708,1757601696788,-165.54,0.00026005,2]
[384867709,1757601696905,-176.42880248,0.00026064,2]
[384867710,1757601712915,-4085.895982,0.00026064,2]
[384867712,1757601728802,-4085.895982,0.00026064,2]
[384867713,1757601745326,-500.0,0.00026064,2]
[384867716,1757601761086,-150.0,0.000249,2]
[384867719,1757601777477,-151.0,0.000249,2]
[384867720,1757601792630,-151.0,0.000249,2]
[384867722,1757601809472,-151.0,0.000249,2]
[384867723,1757601824286,-500.0,0.000249,2]
[384867725,1757601840474,-151.0,0.000249,2]
[384867728,1757601866590,-162.96,0.00024658,2]
[384867729,1757601866625,-303.85749026,0.000249,2]
[384867730,1757601866666,-3240.89001948,0.000249,2]
[384867744,1757602031393,-188.72,0.000249,2]
[384867747,1757602068870,-176.42880248,0.000249,2]
[384867748,1757602105892,-4085.895982,0.000249,2]
[384867749,1757602143441,-500.0,0.000249,2]
[384867755,1757602180771,-165.54,0.000249,2]
[384867756,1757602207118,198.22605439,0.00025,120]
[384867757,1757602217882,-150.0,0.000249,2]
[384867786,1757602232502,-514.1901878,0.000249,2]
[384867793,1757602232549,-3160.69091221,0.000249,2]
[384867795,1757602232558,-150.0,0.000252,2]
[384867797,1757602232567,-192.0,0.000252,2]
[384867799,1757602232576,-150.0,0.000252,2]
[384867801,1757602232586,-192.0,0.000252,2]
[384867803,1757602232598,-730.49,0.00025892,2]
[384867805,1757602232608,-1200.0,0.00025932,2]
[384867807,1757602232617,-194.00675361,0.00025933,2]
[384867809,1757602232628,-805.99324639,0.00025933,2]
[384867811,1757602232639,-200.0,0.00025942,2]
[384867813,1757602232649,-150.0,0.00025979,7]
[384867815,1757602232659,-672.02,0.00025986,2]
[384867817,1757602232669,-1000.01,0.00026,2]
[384867819,1757602232678,-343.84,0.00026017,2]
[384867821,1757602232688,-666.0,0.00026032,3]
[384867823,1757602232697,-257.91778498,0.00026048,2]
[384867825,1757602232706,-5000.0,0.00026055,2]
[384867827,1757602232716,-2506.21923352,0.00026064,2]
[384867829,1757602232725,-352.9,0.00026083,2]
[384867831,1757602232735,-200.0,0.000261,7]
[384867833,1757602232744,-250.0,0.00026105,2]
[384867835,1757602232754,-167.0,0.00026118,2]
[384867837,1757602232764,-168.0,0.00026155,2]
[384867839,1757602232773,-1000.0,0.00026359,2]
[384867841,1757602232783,-200.0,0.00026381,2]
[384867843,1757602232792,-1000.0,0.00026438,7]
[384867845,1757602232801,-338.0,0.000265,2]
[384867847,1757602232811,-515.37529716,0.00026513,2]
[384867849,1757602232820,-160.0,0.00026513,2]
[384867851,1757602232829,-212.89373682,0.00026513,2]
[384867853,1757602232839,-600.0,0.00026575,2]
[384867855,1757602232848,-160.0,0.00026575,2]
[384867857,1757602232857,-500.0,0.00026575,2]
[384867859,1757602232867,-200.0,0.00026575,2]
[384867861,1757602232876,-200.0,0.000266,9]
[384867863,1757602232886,-1000.0,0.0002663,7]
[384867865,1757602232895,-500.0,0.000267,9]
[384867867,1757602232905,-300.0,0.00026712,2]
[384867869,1757602232915,-292.53497599,0.00026712,2]
[384867872,1757602232935,-510.72502401,0.00026712,2]
[384867874,1757602232944,-482.28437971,0.000268,9]
[384867883,1757602233009,-317.71562029,0.000268,9]
[384867885,1757602233018,-1000.0,0.00026821,7]
[384867887,1757602233028,-128.41817928,0.00026867,2]
[384868345,1757602237952,-38.24182072,0.00026867,2]
[384868347,1757602237962,-1000.0,0.000269,9]
[384868348,1757602237972,-3501.0,0.00026952,2]
[384868350,1757602237982,-803.26,0.00026986,2]
[384868352,1757602237991,-803.26,0.00026986,2]
[384868353,1757602238000,-687.13,0.00026986,2]
[384868355,1757602238010,-652.56228491,0.00027,3]
[384868362,1757602238082,-666.0,0.00027,3]
[384868368,1757602238130,-8681.43771509,0.00027,3]
[384868369,1757602238140,-515.37529716,0.00027,3]
[384868371,1757602238149,-212.89373682,0.00027,3]
[384868373,1757602238159,-1000.0,0.00027,2]
[384868375,1757602238169,-1000.0,0.00027013,7]
[384868377,1757602238179,-160.0,0.00027024,2]
[384868379,1757602238188,-160.0,0.00027024,2]
[384868381,1757602238197,-192.21,0.00027097,2]
[384868382,1757602238207,-200.0,0.000271,7]
[384868384,1757602238216,-505.0,0.00027137,2]
[384868386,1757602238226,-150.0,0.00027182,2]
[384868388,1757602238235,-730.49,0.00027187,2]
[384868390,1757602238244,-3202.0078,0.00027197,2]
[384868392,1757602238253,-1016.0,0.000272,2]
[384868393,1757602238262,-2500.0,0.000272,4]
[384868395,1757602238271,-1000.0,0.00027205,7]
[384868397,1757602238281,-1263.88567064,0.00027273,2]
[384868482,1757602240053,-295.66511204,0.00027273,2]
[384868483,1757602240069,-1897.44921732,0.00027273,2]
[384868484,1757602240079,-2037.0,0.00027273,2]
[384868485,1757602240089,-3386.0,0.00027273,2]
[384868486,1757602240099,-886.0,0.00027273,2]
[384868487,1757602240108,-1259.0,0.00027273,2]
[384868488,1757602240118,-638.608,0.00027273,2]
[384868489,1757602240127,-1302.0,0.00027273,2]
[384868490,1757602240137,-637.26585311,0.00027273,2]
[384868491,1757602240149,-941.73414689,0.00027273,2]
[384868492,1757602240159,-570.769,0.00027273,2]
[384868493,1757602240168,-812.0,0.00027273,2]
[384868494,1757602240179,-725.0,0.00027273,2]
[384868495,1757602240190,-6170.0,0.00027273,2]
[384868496,1757602240200,-3908.10654591,0.00027273,2]
[384868513,1757602240509,-343.57729015,0.00027273,2]
[384868515,1757602240523,-16716.31616394,0.00027273,2]
[384868517,1757602240533,-4167.0,0.00027273,2]
[384868518,1757602240542,-500.0,0.00027276,2]
[384868519,1757602240551,-500.0,0.00027276,2]
[384868520,1757602240561,-500.0,0.00027276,2]
[384868521,1757602240571,-500.0,0.00027276,2]
[384868522,1757602240580,-500.0,0.00027276,2]
[384868523,1757602240593,-500.0,0.00027276,2]
[384868524,1757602240602,-324.2169191,0.00027276,2]
[384868525,1757602240612,-500.0,0.00027276,2]
[384868526,1757602240621,-500.0,0.00027276,2]
[384868527,1757602240631,-500.0,0.00027276,2]
[384868528,1757602240642,-500.0,0.00027276,2]
[384868529,1757602240651,-164.5592147,0.00027276,2]
[384868530,1757602240662,-500.0,0.00027276,2]
[384868531,1757602240672,-500.0,0.00027276,2]
[384868532,1757602240682,-500.0,0.00027276,2]
[384868533,1757602240692,-5000.0,0.00027297,2]
[384868534,1757602240701,-364.60866774,0.00027297,2]
[384868535,1757602240711,-1000.01,0.000273,2]
[384868536,1757602240720,-1147.52027506,0.000273,4]
[384868537,1757602240772,-3084.56224589,0.000273,4]
[384868556,1757602243599,-5767.91747905,0.000273,4]
[384868557,1757602243608,-150.0,0.00027307,2]
[384868558,1757602243617,-1589.91998456,0.00027316,2]
[384868559,1757602243627,-277.0,0.00027335,2]
[384868560,1757602243638,-1000.0,0.00027348,2]
[384868561,1757602243647,-1370.970105,0.00027352,2]
[384868562,1757602243657,-638.32,0.00027367,2]
[384868563,1757602243667,-8375.0,0.0002737,2]
[384868564,1757602243676,-287.0,0.0002737,2]
[384868565,1757602243686,-500.0,0.00027373,2]
[384868566,1757602243695,-246.17716835,0.00027373,2]
[384868567,1757602243705,-150.0,0.00027375,2]
[384868568,1757602243714,-56088.88257044,0.00027377,2]
[384868569,1757602243764,-101899.45434856,0.00027377,2]
[384868570,1757602243774,-4997.72834792,0.00027377,2]
[384868571,1757602243784,-638.32,0.00027377,2]
[384868572,1757602243793,-42130.2231784,0.00027377,2]
[384868573,1757602243803,-14993.1850438,0.00027377,2]
[384868574,1757602243812,-192.16,0.0002738,2]
[384868575,1757602243822,-150.0,0.00027382,2]
[384868576,1757602243832,-10532.5557946,0.00027386,2]
[384868577,1757602243841,-500.0,0.00027386,2]
[384868578,1757602243850,-375.93059387,0.00027386,2]
[384868579,1757602243860,-285.81974526,0.00027386,2]
[384868580,1757602243868,-440.23997831,0.00027386,2]
[384868581,1757602243878,-2506.21647763,0.00027387,2]
[384868582,1757602243887,-752.47214969,0.00027387,4]
[384868583,1757602243896,-34085.01754143,0.00027387,2]
[384868627,1757602246020,-471.98,0.00026384,2]
[384868630,1757602246029,-1980.27963024,0.00027387,2]
[384868633,1757602246041,-3920.64884053,0.00027387,2]
[384868636,1757602246052,-626.8265502,0.00027387,2]
[384868662,1757602246249,-4884.23736443,0.00027387,2]
[384868665,1757602246261,-651.32984,0.00027387,2]
[384868667,1757602246272,-1692.2736255,0.00027387,2]
[384868671,1757602246301,-383.5086327,0.00027387,2]
[384868676,1757602246430,-2280.47610914,0.00027387,2]
[384868677,1757602246442,-735.07967839,0.00027387,2]
[384868678,1757602246454,-1965.43095363,0.00027387,2]
[384868685,1757602261880,2500.0,0.00030002,120]
[384868686,1757602262029,2500.0,0.00027296,120]
[384868687,1757602262123,2500.0,0.0002735,120]
[384868688,1757602262749,2500.0,0.0002735,120]
[384868689,1757602268072,-515.37529716,0.00027,3]
[384868690,1757602268100,-2000.0,0.00027272,2]
[384868691,1757602268127,-2000.0,0.00027272,2]
[384868692,1757602268153,-897.0,0.00027274,2]
[384868693,1757602268179,-4238.786,0.00027274,2]
[384868694,1757602268210,-164.19613753,0.00027296,2]
[384868695,1757602268394,-465.19933077,0.00027296,2]
[384868696,1757602271103,300.0,0.00030002,120]
[384868697,1757602271273,300.0,0.00027285,120]
[384868698,1757602271417,300.0,0.00027332,120]
[384868699,1757602272776,2000.0,0.000297,120]
[384868700,1757602273210,2000.0,0.00027136,120]
[384868701,1757602274140,500.0,0.000297,120]
[384868702,1757602274385,500.0,0.00027136,120]
[384868703,1757602281979,-1147.52027506,0.000263,2]
[384868704,1757602343007,-1000.01,0.000249,2]
[384868705,1757602350290,-364.60866774,0.000249,2]
[384868706,1757602357375,-164.19613753,0.000249,2]
[384868707,1757602364563,-465.19933077,0.000249,2]
[384868708,1757602367833,150.96,0.00013195,2]
[384868709,1757602368123,150.96,0.00013971,2]